[Event "1st Sergiy Shystarev Memorial 2020"]
[Site "Kyiv"]
[Date "2020.08.25"]
[Round "1.3"]
[White "Matviishen, Viktor"]
[Black "Gavrish, Leonid"]
[Result "1-0"]
[ECO "A58"]
[WhiteElo "2505"]
[BlackElo "2096"]
[Annotator "ChessBase"]
[PlyCount "65"]
[EventDate "2020.08.25"]
[EventCountry "UKR"]
[SourceTitle "playchess.com"]
[Source "ChessBase"]
[SourceQuality "1"]
[TimeControl "5400+30"]

1. d4 {[%emt 0:00:00]} Nf6 {[%emt 0:00:00]} 2. c4 {[%emt 0:00:00]} c5 {[%emt 0:00:00]} 3. d5 {[%emt 0:01:27]} b5 {[%emt 0:00:00]} 4. cxb5 {[%emt 0:00:04]} a6 {[%emt 0:00:00]} 5. bxa6 {[%emt 0:00:03]} g6 {[%emt 0:00:01]} 6. Nc3 {[%emt 0:00:05]} Bg7 {[%emt 0:00:09]} 7. g3 {[%emt 0:00:14]} d6 {[%emt 0:00:29]} 8. Bg2 {[%emt 0:00:07]} Nbd7 {[%emt 0:01:27]} 9. Nf3 {[%emt 0:00:27]} Nb6 {[%emt 0:00:19]} 10. O-O {[%emt 0:00:25]} Bxa6 {[%emt 0:00:17]} 11. Nd2 {[%emt 0:01:29]} O-O {[%emt 0:00:26]} 12. Qc2 {[%emt 0:00:07]} Nfd7 {[%emt 0:04:01]} 13. Re1 {[%emt 0:03:55]} Ne5 {[%emt 0:08:37]} 14. b3 {[%emt 0:01:01]} f5 {[%emt 0:00:35]} 15. Bb2 {[%emt 0:00:40]} f4 {[%emt 0:00:59]} 16. Nf3 {[%emt 0:07:04]} Nxf3+ {[%emt 0:12:04]} 17. exf3 {[%emt 0:00:23]} Nd7 {[%emt 0:02:53]} 18. Ne4 {[%emt 0:03:01]} Ne5 {[%emt 0:08:09]} 19. Ng5 {[%emt 0:08:24]} Bc8 {[%emt 0:05:31]} 20. Bxe5 {[%emt 0:12:58]} Bxe5 {[%emt 0:00:20]} 21. Rxe5 {[%emt 0:00:04]} dxe5 {[%emt 0:00:19]} 22. Bf1 {[%emt 0:00:14]} e6 {[%emt 0:12:44]} 23. Nxe6 {[%emt 0:00:17]} Bxe6 {[%emt 0:00:18]} 24. dxe6 {[%emt 0:00:02]} fxg3 {[%emt 0:06:51]} 25. hxg3 {[%emt 0:02:21]} Rc8 {[%emt 0:07:29]} 26. Bc4 {[%emt 0:03:28]} Kh8 {[%emt 0:06:29]} 27. Qe4 {[%emt 0:00:23]} Qf6 {[%emt 0:01:27]} 28. Re1 {[%emt 0:02:46]} Kg7 {[%emt 0:00:37]} 29. Qb7+ {[%emt 0:00:44]} Kh6 30. Kg2 Rce8 {[%emt 0:01:48]} 31. Rh1+ {[%emt 0:01:08]} Kg5 {[%emt 0:00:11]} 32. Qe4 {[%emt 0:01:31]} h5 {[%emt 0:00:58]} 33. Qe3+ {[%emt 0:00:09]} 1-0

[Event "1st Sergiy Shystarev Memorial 2020"]
[Site "Kyiv"]
[Date "2020.08.25"]
[Round "1.6"]
[White "Kazakov, Maksym"]
[Black "Shishkin, Vadim"]
[Result "0-1"]
[ECO "A01"]
[WhiteElo "2075"]
[BlackElo "2469"]
[Annotator "ChessBase"]
[PlyCount "74"]
[EventDate "2020.08.25"]
[EventCountry "UKR"]
[SourceTitle "playchess.com"]
[Source "ChessBase"]
[SourceQuality "1"]
[TimeControl "5400+30"]

1. b3 {[%emt 0:01:15]} d5 {[%emt 0:00:58]} 2. e3 {[%emt 0:00:51]} Nf6 {[%emt 0:01:37]} 3. Bb2 {[%emt 0:00:15]} g6 {[%emt 0:05:51]} 4. Bxf6 {[%emt 0:02:31]} exf6 {[%emt 0:00:04]} 5. d4 {[%emt 0:00:09]} Bg7 {[%emt 0:00:10]} 6. g3 {[%emt 0:00:20]} O-O {[%emt 0:00:28]} 7. Bg2 {[%emt 0:00:07]} f5 {[%emt 0:00:25]} 8. Ne2 {[%emt 0:00:19]} Be6 {[%emt 0:00:50]} 9. O-O {[%emt 0:01:11]} Nd7 {[%emt 0:00:49]} 10. c4 {[%emt 0:03:33]} dxc4 {[%emt 0:09:19]} 11. Nf4 {[%emt 0:02:51]} cxb3 {[%emt 0:15:09]} 12. Nd2 {[%emt 0:10:33]} b2 {[%emt 0:01:29]} 13. Rb1 {[%emt 0:00:19]} Nb6 {[%emt 0:06:05]} 14. Nxe6 {[%emt 0:06:47]} fxe6 {[%emt 0:00:07]} 15. Bxb7 {[%emt 0:00:32]} Rb8 {[%emt 0:00:33]} 16. Bf3 {[%emt 0:01:02]} c5 {[%emt 0:11:29]} 17. Nb3 {[%emt 0:09:00]} Na4 {[%emt 0:19:47]} 18. Qc2 {[%emt 0:03:46]} cxd4 {[%emt 0:02:25]} 19. Qc4 {[%emt 0:08:57]} Nc3 {[%emt 0:00:08]} 20. Rxb2 {[%emt 0:01:09]} dxe3 {[%emt 0:01:45]} 21. Qxe6+ {[%emt 0:13:03]} Kh8 {[%emt 0:00:04]} 22. fxe3 {[%emt 0:00:23]} Re8 {[%emt 0:00:37]} 23. Qa6 {[%emt 0:00:20]} Rxe3 {[%emt 0:02:29]} 24. Qxa7 {[%emt 0:01:09]} Rxf3 {[%emt 0:16:01]} 25. Rxf3 {[%emt 0:00:20]} Rxb3 {[%emt 0:00:05]} 26. Rd3 {[%emt 0:00:20]} Ne2+ {[%emt 0:00:32]} 27. Kh1 {[%emt 0:04:47]} Rxd3 {[%emt 0:00:41]} 28. Rb8 {[%emt 0:00:02]} h5 {[%emt 0:01:48]} 29. Kg2 {[%emt 0:00:36]} Kh7 {[%emt 0:00:43]} 30. Rxd8 {[%emt 0:00:12]} Rxd8 {[%emt 0:00:03]} 31. Kf1 {[%emt 0:02:47]} Nc3 {[%emt 0:01:10]} 32. a4 {[%emt 0:00:17]} Rd1+ {[%emt 0:00:39]} 33. Kg2 {[%emt 0:00:17]} Rd2+ {[%emt 0:00:10]} 34. Kf3 {[%emt 0:01:15]} Nd1 {[%emt 0:01:04]} 35. Kf4 {[%emt 0:00:46]} Kh6 {[%emt 0:00:32]} 36. g4 {[%emt 0:00:44]} Rf2+ {[%emt 0:00:17]} 37. Kg3 {[%emt 0:00:11]} Be5+ {[%emt 0:00:07]} 0-1

[Event "1st Sergiy Shystarev Memorial 2020"]
[Site "Kyiv"]
[Date "2020.08.27"]
[Round "3.2"]
[White "Matviishen, Viktor"]
[Black "Budnikov, Oleg"]
[Result "0-1"]
[ECO "E04"]
[WhiteElo "2505"]
[BlackElo "2397"]
[Annotator "ChessBase"]
[PlyCount "58"]
[EventDate "2020.08.25"]
[EventCountry "UKR"]
[SourceTitle "playchess.com"]
[Source "ChessBase"]
[SourceQuality "1"]
[TimeControl "5400+30"]

1. d4 {[%emt 0:00:00]} Nf6 {[%emt 0:00:00]} 2. c4 {[%emt 0:00:00]} e6 {[%emt 0:00:00]} 3. g3 {[%emt 0:00:00]} d5 {[%emt 0:00:01]} 4. Nf3 {[%emt 0:00:00]} dxc4 {[%emt 0:00:14]} 5. Bg2 {[%emt 0:00:08]} Bd7 {[%emt 0:01:53]} 6. Ne5 {[%emt 0:02:45]} Bc6 {[%emt 0:01:21]} 7. Nxc6 {[%emt 0:00:05]} Nxc6 {[%emt 0:00:04]} 8. O-O {[%emt 0:05:23]} Qd7 {[%emt 0:01:39]} 9. e3 {[%emt 0:00:26]} O-O-O {[%emt 0:00:22]} 10. Qa4 {[%emt 0:03:09]} Nd5 {[%emt 0:00:11]} 11. Qxc4 {[%emt 0:00:26]} h5 {[%emt 0:00:13]} 12. Bd2 {[%emt 0:14:28]} h4 {[%emt 0:02:51]} 13. b4 {[%emt 0:01:17]} hxg3 {[%emt 0:00:16]} 14. hxg3 {[%emt 0:00:15]} f5 {[%emt 0:03:33]} 15. b5 {[%emt 0:00:57]} Nce7 {[%emt 0:00:10]} 16. Rc1 {[%emt 0:01:28]} g5 {[%emt 0:00:18]} 17. a4 {[%emt 0:08:47]} f4 {[%emt 0:00:11]} 18. e4 {[%emt 0:02:55]} fxg3 {[%emt 0:00:16]} 19. exd5 {[%emt 0:11:00]} gxf2+ {[%emt 0:00:12]} 20. Kf1 {[%emt 0:00:07]} exd5 {[%emt 0:00:05]} 21. Qd3 {[%emt 0:00:02]} Nf5 {[%emt 0:00:42]} 22. b6 {[%emt 0:09:09]} axb6 {[%emt 0:00:50]} 23. Nc3 {[%emt 0:00:46]} Bd6 {[%emt 0:02:09]} 24. Nxd5 {[%emt 0:00:18]} Kb8 {[%emt 0:00:19]} 25. Nf6 {[%emt 0:00:11]} Qe6 {[%emt 0:00:20]} 26. Ne4 {[%emt 0:00:05]} Rh2 {[%emt 0:01:29]} 27. Nxd6 {[%emt 0:14:41]} Rxd6 {[%emt 0:08:40]} 28. Bxg5 {[%emt 0:11:58]} Rxg2 {[%emt 0:07:29]} 29. Kxg2 {[%emt 0:00:24]} Qg6 {[%emt 0:00:09]} 0-1

[Event "1st Sergiy Shystarev Memorial 2020"]
[Site "Kyiv"]
[Date "2020.08.27"]
[Round "3.3"]
[White "Zubarev, Alexander"]
[Black "Vysochin, Spartak"]
[Result "0-1"]
[ECO "D10"]
[WhiteElo "2430"]
[BlackElo "2501"]
[Annotator "ChessBase"]
[PlyCount "40"]
[EventDate "2020.08.25"]
[EventCountry "UKR"]
[SourceTitle "playchess.com"]
[Source "ChessBase"]
[SourceQuality "1"]
[TimeControl "5400+30"]

1. d4 {[%emt 0:00:00]} d5 {[%emt 0:00:00]} 2. c4 {[%emt 0:00:00]} c6 {[%emt 0:00:00]} 3. Nc3 {[%emt 0:00:00]} Nf6 {[%emt 0:00:00]} 4. e3 {[%emt 0:00:26]} Bf5 {[%emt 0:00:47]} 5. cxd5 {[%emt 0:00:20]} cxd5 {[%emt 0:00:08]} 6. Qb3 {[%emt 0:00:04]} Nc6 {[%emt 0:00:08]} 7. Qxb7 {[%emt 0:00:40]} Bd7 {[%emt 0:00:05]} 8. Bb5 {[%emt 0:08:34]} Rb8 {[%emt 0:03:57]} 9. Qa6 {[%emt 0:01:09]} Nb4 {[%emt 0:02:15]} 10. Qa4 {[%emt 0:18:10]} Rxb5 {[%emt 0:11:16]} 11. Nxb5 {[%emt 0:00:16]} e5 {[%emt 0:10:05]} 12. Bd2 {[%emt 0:21:25]} Nd3+ {[%emt 0:02:44]} 13. Ke2 {[%emt 0:01:25]} Qb8 {[%emt 0:07:27]} 14. Qxa7 {[%emt 0:04:25]} Qxb5 {[%emt 0:01:54]} 15. Qa8+ {[%emt 0:04:00]} Ke7 {[%emt 0:00:00]} 16. a4 {[%emt 0:00:30]} Qc4 {[%emt 0:07:12]} 17. b3 {[%emt 0:02:52]} Nf4+ {[%emt 0:01:08]} 18. Kf3 {[%emt 0:00:19]} e4+ {[%emt 0:01:21]} 19. Kg3 {[%emt 0:00:13]} N6h5+ {[%emt 0:00:42]} 20. Kh4 {[%emt 0:00:20]} g5+ 0-1

[Event "1st Sergiy Shystarev Memorial 2020"]
[Site "Kyiv"]
[Date "2020.08.27"]
[Round "3.4"]
[White "Skliarov, Viktor"]
[Black "Shishkin, Vadim"]
[Result "1/2-1/2"]
[ECO "B31"]
[WhiteElo "2376"]
[BlackElo "2469"]
[Annotator "ChessBase"]
[PlyCount "35"]
[EventDate "2020.08.25"]
[EventCountry "UKR"]
[SourceTitle "playchess.com"]
[Source "ChessBase"]
[SourceQuality "1"]
[TimeControl "5400+30"]

1. e4 c5 {[%emt 0:00:00]} 2. Nf3 {[%emt 0:00:00]} Nc6 3. Bb5 {[%emt 0:00:00]} g6 {[%emt 0:00:00]} 4. O-O {[%emt 0:00:00]} Bg7 {[%emt 0:00:00]} 5. Re1 {[%emt 0:00:08]} e5 6. Bxc6 {[%emt 0:00:12]} dxc6 {[%emt 0:00:00]} 7. d3 {[%emt 0:00:09]} Qe7 {[%emt 0:00:00]} 8. Nbd2 {[%emt 0:04:11]} Nf6 9. Nc4 {[%emt 0:00:52]} Nd7 {[%emt 0:01:52]} 10. Be3 O-O {[%emt 0:01:04]} 11. Qd2 {[%emt 0:03:19]} Rd8 {[%emt 0:27:05]} 12. a3 Nb6 {[%emt 0:15:53]} 13. Qc3 {[%emt 0:12:39]} Bg4 {[%emt 0:03:57]} 14. Nxb6 {[%emt 0:04:03]} axb6 {[%emt 0:00:09]} 15. Nd2 {[%emt 0:00:03]} Be6 16. b4 {[%emt 0:07:36]} cxb4 {[%emt 0:04:34]} 17. axb4 {[%emt 0:00:49]} b5 {[%emt 0:00:50]} 18. Nb3 {[%emt 0:03:30]} 1/2-1/2

[Event "1st Sergiy Shystarev Memorial 2020"]
[Site "Kyiv"]
[Date "2020.08.27"]
[Round "3.6"]
[White "Malakhatko, Vadim"]
[Black "Samunenkov, Ihor"]
[Result "1-0"]
[ECO "E15"]
[WhiteElo "2488"]
[BlackElo "2142"]
[Annotator "ChessBase"]
[PlyCount "93"]
[EventDate "2020.08.25"]
[EventCountry "UKR"]
[SourceTitle "playchess.com"]
[Source "ChessBase"]
[SourceQuality "1"]
[TimeControl "5400+30"]

1. d4 {[%emt 0:00:00]} Nf6 {[%emt 0:00:00]} 2. c4 {[%emt 0:00:00]} e6 {[%emt 0:00:00]} 3. Nf3 {[%emt 0:00:00]} b6 {[%emt 0:00:00]} 4. g3 {[%emt 0:00:00]} c6 {[%emt 0:00:19]} 5. Nc3 {[%emt 0:01:02]} d5 {[%emt 0:01:55]} 6. Qa4 {[%emt 0:06:24]} a6 {[%emt 0:03:25]} 7. Bg2 {[%emt 0:17:47]} Be7 {[%emt 0:06:20]} 8. cxd5 {[%emt 0:06:06]} b5 {[%emt 0:01:41]} 9. Qc2 {[%emt 0:05:09]} cxd5 {[%emt 0:01:50]} 10. O-O {[%emt 0:00:11]} Bb7 {[%emt 0:01:58]} 11. Bf4 {[%emt 0:03:27]} Nc6 {[%emt 0:04:44]} 12. Rfc1 {[%emt 0:00:32]} O-O {[%emt 0:02:10]} 13. Qd3 {[%emt 0:06:37]} Rc8 {[%emt 0:06:53]} 14. Bg5 {[%emt 0:10:20]} h6 {[%emt 0:09:47]} 15. Bxf6 {[%emt 0:00:06]} Bxf6 {[%emt 0:00:22]} 16. e3 {[%emt 0:00:04]} Na5 {[%emt 0:03:58]} 17. Ne2 {[%emt 0:06:12]} Nc4 {[%emt 0:08:22]} 18. Rc2 {[%emt 0:01:56]} Nd6 {[%emt 0:02:21]} 19. Rxc8 {[%emt 0:02:08]} Qxc8 {[%emt 0:00:42]} 20. Nc1 {[%emt 0:00:36]} Be7 {[%emt 0:07:04]} 21. Qd1 {[%emt 0:03:21]} Qb8 {[%emt 0:06:11]} 22. Nd3 {[%emt 0:00:11]} Nc4 {[%emt 0:05:46]} 23. b3 {[%emt 0:03:37]} Nd6 {[%emt 0:00:17]} 24. Nc5 {[%emt 0:00:13]} Rc8 {[%emt 0:02:26]} 25. Ne5 {[%emt 0:01:20]} Qc7 {[%emt 0:00:56]} 26. Bh3 {[%emt 0:02:37]} Nf5 {[%emt 0:04:57]} 27. Rc1 {[%emt 0:03:06]} Bd6 {[%emt 0:03:54]} 28. Ned3 {[%emt 0:01:11]} Qe7 {[%emt 0:01:26]} 29. Bxf5 {[%emt 0:04:06]} exf5 {[%emt 0:00:30]} 30. Qh5 {[%emt 0:00:08]} f4 {[%emt 0:05:39]} 31. gxf4 {[%emt 0:01:03]} Bxc5 32. Nxc5 {[%emt 0:01:42]} Rc6 {[%emt 0:01:35]} 33. Qe5 {[%emt 0:05:29]} Qh4 {[%emt 0:02:07]} 34. f5 {[%emt 0:00:29]} Kh7 {[%emt 0:01:39]} 35. Kf1 {[%emt 0:06:31]} Bc8 {[%emt 0:02:02]} 36. Qxd5 {[%emt 0:01:48]} Rf6 {[%emt 0:01:56]} 37. e4 {[%emt 0:00:19]} Qxh2 {[%emt 0:02:05]} 38. Nd3 {[%emt 0:00:59]} Rd6 {[%emt 0:01:05]} 39. Qe5 {[%emt 0:00:51]} Qh3+ {[%emt 0:00:30]} 40. Ke2 {[%emt 0:00:11]} Qg4+ {[%emt 0:00:28]} 41. f3 {[%emt 0:01:32]} Qg2+ {[%emt 0:00:15]} 42. Nf2 {[%emt 0:00:07]} Rd8 {[%emt 0:00:28]} 43. Rc7 {[%emt 0:00:43]} Kg8 {[%emt 0:00:52]} 44. Qc5 {[%emt 0:00:18]} Bxf5 {[%emt 0:00:29]} 45. Qxf5 {[%emt 0:00:09]} f6 {[%emt 0:00:15]} 46. d5 {[%emt 0:00:24]} Qg1 {[%emt 0:00:02]} 47. Qg4 {[%emt 0:00:34]} 1-0

[Event "1st Sergiy Shystarev Memorial 2020"]
[Site "Kyiv"]
[Date "2020.08.27"]
[Round "4.1"]
[White "Vysochin, Spartak"]
[Black "Roshka, Yevgeniy"]
[Result "1/2-1/2"]
[ECO "B22"]
[WhiteElo "2501"]
[BlackElo "2455"]
[Annotator "ChessBase"]
[PlyCount "32"]
[EventDate "2020.08.25"]
[EventCountry "UKR"]
[SourceTitle "playchess.com"]
[Source "ChessBase"]
[SourceQuality "1"]
[TimeControl "5400+30"]

1. e4 {[%emt 0:00:00]} c5 {[%emt 0:05:39]} 2. c3 {[%emt 0:00:00]} Nf6 {[%emt 0:00:02]} 3. e5 {[%emt 0:00:03]} Nd5 {[%emt 0:00:01]} 4. d4 {[%emt 0:00:45]} cxd4 {[%emt 0:00:01]} 5. cxd4 {[%emt 0:00:06]} d6 {[%emt 0:00:28]} 6. Nf3 {[%emt 0:00:08]} Nc6 {[%emt 0:00:01]} 7. Bc4 {[%emt 0:00:10]} dxe5 {[%emt 0:00:04]} 8. dxe5 {[%emt 0:00:06]} Nb6 {[%emt 0:00:03]} 9. Qxd8+ {[%emt 0:00:29]} Nxd8 {[%emt 0:00:03]} 10. Bb5+ {[%emt 0:00:11]} Bd7 {[%emt 0:00:05]} 11. Nc3 {[%emt 0:00:16]} e6 {[%emt 0:01:05]} 12. Ke2 {[%emt 0:07:11]} a6 {[%emt 0:11:57]} 13. Bxd7+ {[%emt 0:03:32]} Nxd7 {[%emt 0:02:57]} 14. Rd1 {[%emt 0:01:12]} h6 {[%emt 0:00:53]} 15. h4 {[%emt 0:02:02]} Nc6 {[%emt 0:01:59]} 16. Bf4 {[%emt 0:00:07]} Be7 1/2-1/2

[Event "1st Sergiy Shystarev Memorial 2020"]
[Site "Kyiv"]
[Date "2020.08.27"]
[Round "4.2"]
[White "Budnikov, Oleg"]
[Black "Solodovnichenko, Yuri"]
[Result "1/2-1/2"]
[ECO "C42"]
[WhiteElo "2397"]
[BlackElo "2553"]
[Annotator "ChessBase"]
[PlyCount "22"]
[EventDate "2020.08.25"]
[EventCountry "UKR"]
[SourceTitle "playchess.com"]
[Source "ChessBase"]
[SourceQuality "1"]
[TimeControl "5400+30"]

1. e4 {[%emt 0:06:08]} e5 {[%emt 0:00:32]} 2. Nf3 {[%emt 0:02:44]} Nf6 {[%emt 0:00:14]} 3. Nxe5 {[%emt 0:00:53]} d6 {[%emt 0:00:06]} 4. Nf3 {[%emt 0:00:08]} Nxe4 {[%emt 0:00:06]} 5. Qe2 {[%emt 0:00:11]} Qe7 {[%emt 0:00:08]} 6. d3 {[%emt 0:00:09]} Nf6 {[%emt 0:00:06]} 7. Bg5 {[%emt 0:00:33]} Qxe2+ {[%emt 0:00:20]} 8. Bxe2 {[%emt 0:00:05]} Nbd7 {[%emt 0:00:21]} 9. Nc3 {[%emt 0:00:12]} h6 10. Bf4 {[%emt 0:00:21]} Nb6 {[%emt 0:05:46]} 11. O-O-O {[%emt 0:00:43]} Bd7 {[%emt 0:01:54]} 1/2-1/2

[Event "1st Sergiy Shystarev Memorial 2020"]
[Site "Kyiv"]
[Date "2020.08.27"]
[Round "4.5"]
[White "Malovanyi, Yulian"]
[Black "Skliarov, Viktor"]
[Result "1/2-1/2"]
[ECO "B30"]
[WhiteElo "2311"]
[BlackElo "2376"]
[Annotator "ChessBase"]
[PlyCount "35"]
[EventDate "2020.08.25"]
[EventCountry "UKR"]
[SourceTitle "playchess.com"]
[Source "ChessBase"]
[SourceQuality "1"]
[TimeControl "5400+30"]

1. e4 {[%emt 0:06:37]} c5 {[%emt 0:00:00]} 2. Nf3 {[%emt 0:00:37]} Nc6 {[%emt 0:00:00]} 3. c3 {[%emt 0:01:03]} Nf6 {[%emt 0:00:37]} 4. e5 {[%emt 0:01:25]} Nd5 {[%emt 0:00:08]} 5. g3 {[%emt 0:03:11]} e6 {[%emt 0:05:51]} 6. Bg2 {[%emt 0:00:28]} Be7 {[%emt 0:00:09]} 7. O-O {[%emt 0:02:23]} O-O {[%emt 0:00:36]} 8. Re1 {[%emt 0:21:33]} f6 {[%emt 0:04:32]} 9. d4 {[%emt 0:02:31]} cxd4 {[%emt 0:02:16]} 10. cxd4 d6 {[%emt 0:07:38]} 11. exd6 {[%emt 0:06:11]} Bxd6 {[%emt 0:00:15]} 12. Nc3 {[%emt 0:01:10]} Nce7 {[%emt 0:16:08]} 13. Bh3 {[%emt 0:03:38]} Nc7 {[%emt 0:00:55]} 14. Qb3 {[%emt 0:04:14]} Kh8 {[%emt 0:05:50]} 15. Bd2 {[%emt 0:05:22]} b6 {[%emt 0:03:54]} 16. Ne4 {[%emt 0:05:04]} Ned5 {[%emt 0:00:17]} 17. Rac1 {[%emt 0:08:29]} Bb7 {[%emt 0:08:53]} 18. Rc2 1/2-1/2

[Event "1st Sergiy Shystarev Memorial 2020"]
[Site "Kyiv"]
[Date "2020.08.27"]
[Round "4.6"]
[White "Sivuk, Vitaly"]
[Black "Biletskiy, Danylo"]
[Result "1/2-1/2"]
[ECO "A58"]
[WhiteElo "2545"]
[BlackElo "2252"]
[Annotator "ChessBase"]
[PlyCount "34"]
[EventDate "2020.08.25"]
[EventCountry "UKR"]
[SourceTitle "playchess.com"]
[Source "ChessBase"]
[SourceQuality "1"]
[TimeControl "5400+30"]

1. d4 {[%emt 0:00:00]} Nf6 {[%emt 0:00:00]} 2. c4 {[%emt 0:00:00]} c5 {[%emt 0:00:00]} 3. d5 {[%emt 0:00:00]} b5 {[%emt 0:00:00]} 4. cxb5 {[%emt 0:00:06]} a6 {[%emt 0:00:00]} 5. bxa6 {[%emt 0:00:11]} g6 {[%emt 0:00:00]} 6. Nc3 {[%emt 0:00:09]} Bg7 7. e4 {[%emt 0:00:50]} O-O {[%emt 0:00:26]} 8. Be2 {[%emt 0:01:07]} Qa5 {[%emt 0:03:15]} 9. Bd2 {[%emt 0:02:13]} Bxa6 {[%emt 0:00:17]} 10. e5 {[%emt 0:00:30]} Ne8 {[%emt 0:00:30]} 11. Nf3 {[%emt 0:00:30]} d6 {[%emt 0:00:30]} 12. e6 {[%emt 0:00:30]} fxe6 {[%emt 0:00:30]} 13. Ng5 {[%emt 0:00:30]} e5 {[%emt 0:00:30]} 14. h4 {[%emt 0:00:30]} Bxe2 {[%emt 0:00:30]} 15. Qxe2 {[%emt 0:00:30]} Nf6 {[%emt 0:00:30]} 16. h5 Ne8 {[%emt 0:11:30]} 17. h6 {[%emt 0:11:47]} Nf6 {[%emt 0:02:34]} 1/2-1/2

[Event "1st Sergiy Shystarev Memorial 2020"]
[Site "Kyiv"]
[Date "2020.08.27"]
[Round "4.6"]
[White "Sivuk, Vitaly"]
[Black "Biletskiy, Danylo"]
[Result "1-0"]
[ECO "A58"]
[WhiteElo "2545"]
[BlackElo "2252"]
[Annotator "ChessBase"]
[PlyCount "47"]
[EventDate "2020.08.25"]
[EventCountry "UKR"]
[SourceTitle "playchess.com"]
[Source "ChessBase"]
[SourceQuality "1"]
[TimeControl "5400+30"]

1. d4 {[%emt 0:00:00]} Nf6 {[%emt 0:00:00]} 2. c4 {[%emt 0:00:00]} c5 {[%emt 0:00:00]} 3. d5 {[%emt 0:00:00]} b5 {[%emt 0:00:00]} 4. cxb5 {[%emt 0:00:06]} a6 {[%emt 0:00:00]} 5. bxa6 {[%emt 0:00:11]} g6 {[%emt 0:00:00]} 6. Nc3 {[%emt 0:00:09]} Bg7 7. e4 {[%emt 0:00:50]} O-O {[%emt 0:00:26]} 8. Be2 {[%emt 0:01:07]} Qa5 {[%emt 0:03:15]} 9. Bd2 {[%emt 0:02:13]} Bxa6 {[%emt 0:00:17]} 10. e5 {[%emt 0:00:30]} Ne8 {[%emt 0:00:30]} 11. Nf3 {[%emt 0:00:30]} d6 {[%emt 0:00:30]} 12. e6 {[%emt 0:00:30]} fxe6 {[%emt 0:00:30]} 13. Ng5 {[%emt 0:00:30]} e5 {[%emt 0:00:30]} 14. h4 {[%emt 0:00:30]} Bxe2 {[%emt 0:00:30]} 15. Qxe2 {[%emt 0:00:30]} Nf6 {[%emt 0:00:30]} 16. h5 Qa6 {[%emt 0:11:27]} 17. Nb5 {[%emt 0:11:47]} Qa4 {[%emt 0:00:30]} 18. hxg6 {[%emt 0:00:30]} hxg6 {[%emt 0:00:30]} 19. Nc7 {[%emt 0:00:30]} Ra7 {[%emt 0:00:30]} 20. Nce6 {[%emt 0:00:30]} Qg4 {[%emt 0:00:30]} 21. Qxg4 {[%emt 0:00:30]} Nxg4 {[%emt 0:00:30]} 22. Nxg7 {[%emt 0:00:30]} Rxf2 {[%emt 0:00:30]} 23. N7e6 {[%emt 0:00:30]} Nd7 {[%emt 0:00:30]} 24. Rh7 {[%emt 0:00:30]} 1-0

[Event "1st Sergiy Shystarev Memorial 2020"]
[Site "Kyiv"]
[Date "2020.08.28"]
[Round "5.1"]
[White "Kislinsky, Alexey"]
[Black "Vysochin, Spartak"]
[Result "1/2-1/2"]
[ECO "D10"]
[WhiteElo "2452"]
[BlackElo "2501"]
[Annotator "ChessBase"]
[PlyCount "21"]
[EventDate "2020.08.25"]
[EventCountry "UKR"]
[SourceTitle "playchess.com"]
[Source "ChessBase"]
[SourceQuality "1"]
[TimeControl "5400+30"]

1. d4 {[%emt 0:18:15]} d5 {[%emt 0:00:00]} 2. c4 {[%emt 0:00:07]} c6 {[%emt 0:00:00]} 3. cxd5 {[%emt 0:00:07]} cxd5 {[%emt 0:00:00]} 4. Nc3 {[%emt 0:00:06]} Nf6 {[%emt 0:00:00]} 5. Bf4 {[%emt 0:00:08]} Nc6 {[%emt 0:00:02]} 6. e3 {[%emt 0:00:07]} Bg4 {[%emt 0:00:23]} 7. Be2 {[%emt 0:00:23]} Bxe2 8. Ngxe2 {[%emt 0:00:15]} e6 {[%emt 0:00:11]} 9. O-O {[%emt 0:00:12]} Bd6 {[%emt 0:00:08]} 10. Rc1 {[%emt 0:00:16]} O-O {[%emt 0:00:07]} 11. Bxd6 {[%emt 0:00:09]} 1/2-1/2

[Event "1st Sergiy Shystarev Memorial 2020"]
[Site "Kyiv"]
[Date "2020.08.28"]
[Round "5.2"]
[White "Roshka, Yevgeniy"]
[Black "Budnikov, Oleg"]
[Result "1/2-1/2"]
[ECO "D90"]
[WhiteElo "2455"]
[BlackElo "2397"]
[Annotator "ChessBase"]
[PlyCount "38"]
[EventDate "2020.08.25"]
[EventCountry "UKR"]
[SourceTitle "playchess.com"]
[Source "ChessBase"]
[SourceQuality "1"]
[TimeControl "5400+30"]

1. d4 {[%emt 0:07:11]} Nf6 {[%emt 0:04:45]} 2. c4 {[%emt 0:02:31]} g6 {[%emt 0:01:56]} 3. Nc3 {[%emt 0:00:02]} d5 {[%emt 0:00:27]} 4. Nf3 {[%emt 0:02:29]} Bg7 {[%emt 0:00:37]} 5. g3 {[%emt 0:01:47]} O-O {[%emt 0:01:27]} 6. Bg2 {[%emt 0:00:09]} dxc4 {[%emt 0:03:11]} 7. O-O {[%emt 0:00:14]} Nc6 {[%emt 0:01:18]} 8. e4 {[%emt 0:07:19]} Bg4 {[%emt 0:01:37]} 9. Be3 {[%emt 0:00:45]} Nd7 {[%emt 0:02:59]} 10. e5 {[%emt 0:11:18]} Nb6 {[%emt 0:09:02]} 11. Ne4 {[%emt 0:12:05]} Qc8 {[%emt 0:05:54]} 12. Nc5 {[%emt 0:04:20]} Rd8 {[%emt 0:01:10]} 13. Qc2 {[%emt 0:01:25]} Rb8 {[%emt 0:02:31]} 14. Qc3 {[%emt 0:09:24]} f6 {[%emt 0:03:17]} 15. exf6 {[%emt 0:02:44]} exf6 {[%emt 0:01:06]} 16. Rfe1 {[%emt 0:03:30]} Ne7 {[%emt 0:03:11]} 17. Nd2 {[%emt 0:03:51]} Ned5 {[%emt 0:05:10]} 18. Qc1 {[%emt 0:01:36]} Bh3 {[%emt 0:04:47]} 19. Bf3 {[%emt 0:01:05]} Bg4 1/2-1/2